[Event "3rd Rio Open-Blitz 2024"]
[Site "Rio de Janeiro"]
[Date "2024.04.27"]
[Round "7.6"]
[White "Hoffman, Alejandro"]
[Black "Becker, Rogerio Sperb"]
[Result "0-1"]
[ECO "B38"]
[WhiteElo "2379"]
[BlackElo "2054"]
[Annotator "TA"]
[PlyCount "64"]
[EventDate "2024.04.12"]
[EventType "swiss"]
[EventCountry "BRA"]
[SourceTitle "playchess.com"]
[Source "ChessBase"]
[SourceQuality "1"]
[TimeControl "180+2"]

{[%evp 19,64,38,41,31,32,22,71,6,37,0,26,0,0,0,0,0,0,-44,-6,-37,-1,-51,0,0,31,0,0,-70,-77,-70,-66,-61,0,-8,-8,-10,-11,-8,-10,-104,-107,-108,-94,-134,-76,-69,-69]} 1. Nf3 {[%emt 0:00:02]} Nf6 {[%emt 0:00:00]} 2. c4 {[%emt 0:00:01]} g6 {[%emt 0:00:02]} 3. Nc3 {[%emt 0:00:02]} c5 {[%emt 0:00:00]} 4. d4 {[%emt 0:00:05]} cxd4 {[%emt 0:00:02]} 5. Nxd4 {[%emt 0:00:02]} Bg7 {[%emt 0:00:00]} 6. e4 {[%emt 0:00:02]} d6 {[%emt 0:00:01]} 7. Be2 {[%emt 0:00:03]} O-O {[%emt 0:00:02]} 8. O-O {[%emt 0:00:04]} Nc6 {[%emt 0:00:00]} 9. Be3 {[%emt 0:00:02]} Bd7 {[%emt 0:00:04]} 10. h3 {[%emt 0:00:03]} a6 {[%emt 0:03:11]} 11. a4 {[%emt 0:00:20]} Nxd4 {[%emt 0:00:00]} 12. Bxd4 {[%emt 0:02:40]} (12. Qxd4 Ng4 13. Qd3 Nxe3 14. Qxe3 Re8 $16) 12... Bc6 {[#]} (12... a5 $11) 13. Qc2 {[%emt 0:00:00]} (13. a5 $1 $16) 13... Qa5 {[%emt 0:00:00]} 14. Rad1 {[%emt 0:00:00]} Rfc8 {[%emt 0:00:00][%cal Ob7b5]} 15. Rfe1 {[%emt 0:00:06]} b5 {[%emt 0:00:10]} 16. axb5 {[%emt 0:00:00]} axb5 {[%emt 0:00:02]} 17. cxb5 {[%emt 0:00:00]} Bxb5 {[%emt 0:00:02]} 18. Qd2 {[%emt 0:00:06]} Bc6 {[%emt 0:00:00]} 19. Bf3 {[%emt 0:00:02]} Rab8 {[%emt 0:00:00]} 20. e5 {[%emt 0:00:02]} (20. Bxf6 $11 exf6 (20... Bxf6 21. Nd5 $11) 21. Qxd6) 20... dxe5 {[%emt 0:00:00]} (20... Bxf3 $15 21. gxf3 dxe5 22. Rxe5 Qb4) 21. Rxe5 $11 {[%emt 0:00:00]} Qb4 {[%emt 0:00:08]} 22. Bxc6 {[%emt 0:00:00]} Rxc6 {[%emt 0:00:00]} 23. Re2 {[%emt 0:00:00]} ({White should play} 23. Qe2 $11) 23... Rd6 $15 {[%emt 0:00:00] [#] aiming for ...Rbd8.} 24. Qe3 {[%emt 0:00:08][%cal Oe2d2]} (24. Rxe7 $2 Rxd4 (24... Qxb2 25. Qxb2 Rxb2 26. Bxf6 $14) 25. Qe1 Rxd1 26. Nxd1 Qh4 $19) 24... Rbd8 $36 {[%emt 0:00:00][%cal Rd6d4][%mdl 2048] Black has good play.} 25. Red2 {[%emt 0:00:02][%cal Od4c5]} (25. Qxe7 $2 {too greedy.} R8d7 (25... Rxd4 $2 26. Qxb4 Rxb4 27. Rxd8+ $18) (25... Bf8 $2 26. Qe5 $19) 26. Qe3 Rxd4 $19) 25... Qb7 {[%emt 0:00:00]} (25... Ne4 $15 26. Qxe4 Bxd4 (26... Rxd4 27. Rxd4 Bxd4 28. Kh1 $15)) 26. Bxf6 {[%emt 0:00:02]} Bxf6 {[%emt 0:00:00]} 27. Rxd6 {[%emt 0:00:00]} Rxd6 {[%emt 0:00:12]} 28. Rxd6 {[%emt 0:00:00]} exd6 $11 {[%emt 0:00:02] KQB-KQN} 29. Ne4 {[%emt 0:00:00]} (29. Qd2 $11) 29... Qxb2 $17 {[%emt 0:00:00]} ({Don't play} 29... Bxb2 $6 30. Nxd6 Qd5 31. Ne4 $11) 30. g3 {[%emt 0:00:08]} d5 {[%emt 0:00:04]} 31. Nd6 {[%emt 0:00:02] Threatening mate with Qe8+.} Qa1+ {[%emt 0:00:02]} (31... Be5 $142 32. Nb5 Qb1+ 33. Kg2 Qf5) 32. Kg2 {[%emt 0:00:02]} Qe5 {[%emt 0:00:02] Weighted Error Value: White=0.30/Black=0.26 (precise) .  Mistake:       	White=4     	Black=4      Inaccurate:     	White=6     	Black=5      OK:         	White=2     	Black=2      Best:        	White=3     	Black=1} 0-1

[Event "3rd Rio Open-Blitz 2024"]
[Site "Rio de Janeiro"]
[Date "2024.04.27"]
[Round "8.1"]
[White "Labussiere, Yago"]
[Black "Fier, Alexandr"]
[Result "0-1"]
[ECO "A30"]
[WhiteElo "2184"]
[BlackElo "2566"]
[Annotator "TA"]
[PlyCount "78"]
[EventDate "2024.04.12"]
[EventType "swiss"]
[EventCountry "BRA"]
[SourceTitle "playchess.com"]
[Source "ChessBase"]
[SourceQuality "1"]
[TimeControl "180+2"]

{[%evp 21,78,21,25,18,23,-23,10,-2,0,-21,28,4,14,0,0,0,0,0,0,0,4,-22,-20,-42,-38,-64,-30,-106,-77,-135,0,0,0,0,0,0,0,0,41,67,68,-402,-387,-374,-314,-464,-433,-522,-534,-762,-695,-1572,-1377,-1445,-1352,-2729,-2427,-29983,-29983]} 1. Nf3 {[%emt 0:00:01]} b6 {[%emt 0:00:01]} 2. g3 {[%emt 0:00:01]} Bb7 {[%emt 0:00:00]} 3. Bg2 {[%emt 0:00:02]} c5 {[%emt 0:00:02]} 4. c4 {[%emt 0:00:03]} Nf6 {[%emt 0:00:01]} 5. O-O {[%emt 0:00:01]} e6 {[%emt 0:00:01]} 6. Nc3 {[%emt 0:00:06]} a6 {[%emt 0:03:09]} 7. b3 {[%emt 0:00:05]} Be7 {[%emt 0:00:00]} 8. Bb2 {[%emt 0:00:00]} O-O {[%emt 0:00:00]} 9. d4 {[%emt 0:00:09]} cxd4 {[%emt 0:00:00]} 10. Nxd4 {[%emt 0:00:01]} Bxg2 {[%emt 0:00:00]} 11. Kxg2 {[%emt 0:00:01]} Qc7 {[%emt 0:00:00]} 12. Rc1 {[%emt 0:00:07]} Nc6 {[%emt 0:00:00]} 13. Qd2 {[%emt 0:01:10]} (13. e4 {is more appropriate.}) 13... Qb7 {[%emt 0:00:00]} 14. Kg1 {[%emt 0:00:01] The position is equal.} Rfc8 {[%emt 0:00:00]} 15. Rfd1 {[%emt 0:00:16]} Ne5 {[%emt 0:00:00]} (15... Nxd4 $142 16. Qxd4 b5) 16. f3 {[%emt 0:00:35]} h5 {[%emt 0:00:00]} 17. Kh1 {[%emt 0:00:33]} Ng6 {[%emt 0:00:00]} 18. e4 {[%emt 0:00:02]} h4 {[%emt 0:00:00]} 19. Kg2 {[%emt 0:00:03]} Bc5 {[%emt 0:00:00]} 20. Na4 {[%emt 0:00:05]} Be7 {[%emt 0:00:00]} 21. Nc3 {[%emt 0:00:01]} Qb8 {[%emt 0:00:00]} 22. Nce2 {[%emt 0:00:11]} b5 {[%emt 0:00:00]} 23. cxb5 {[%emt 0:00:10]} Rxc1 {[%emt 0:00:00]} 24. Rxc1 {[%emt 0:00:00]} (24. Qxc1 $11 {keeps the balance.} axb5 25. a3) 24... axb5 $17 {[%emt 0:00:00]} 25. Bc3 {[%emt 0:00:02]} (25. Ba1 $142) 25... d5 {[%emt 0:00:00]} ({Black should try} 25... Qb7 $17 {Threatens to win with ...b4.} 26. Rc2 e5) 26. Nc6 $11 {[%emt 0:00:04]} Qb7 {[%emt 0:00:00][%cal Od5e4] [#] aiming for ...dxe4!} 27. Nxe7+ {[%emt 0:00:01]} Qxe7 {[%emt 0:00:00]} 28. Bxf6 {[%emt 0:00:01]} Qxf6 {[%emt 0:00:00]} 29. exd5 {[%emt 0:00:00]} exd5 {[%emt 0:00:00]} 30. Qxd5 {[%emt 0:00:03]} Re8 {[%emt 0:00:00]} 31. Nd4 {[%emt 0:00:04][%mdl 8192] This costs White the game.} (31. Qxb5 $14 {keeps the upper hand.} h3+ 32. Kf2 (32. Kxh3 $2 {is the wrong capture.} Qe6+ 33. g4 Qxe2 $19)) 31... Rd8 $19 {[%emt 0:00:00]} 32. Qxb5 {[%emt 0:00:02]} Qxd4 {[%emt 0:00:00]} 33. Rc2 {[%emt 0:00:01] Repels Qb2} (33. Re1 $142) 33... Qd1 {[%emt 0:00:00]} 34. Qe2 {[%emt 0:00:02]} Qd7 {[%emt 0:00:00] Strongly threatening ...Re8.} 35. b4 {[%emt 0:00:04]} h3+ {[%emt 0:00:00]} 36. Kf2 {[%emt 0:00:00]} Re8 {[%emt 0:00:00]} 37. Qd2 {[%emt 0:00:02]} Qa7+ {[%emt 0:00:00]} 38. Rc5 {[%emt 0:00:01]} Ne5 {[%emt 0:00:00] [#] ...Nd7 is the strong threat.} 39. Kf1 {[%emt 0:00:06]} Nxf3 {[%emt 0:00:00] Weighted Error Value: White=1.02/Black=0.16 (very precise) .  Loses game:     	White=1     	---        Mistake:       	White=4     	Black=2      Inaccurate:     	White=4     	Black=3      OK:         	White=4     	Black=7      Best:        	White=1     	Black=2} 0-1

[Event "3rd Rio Open-Blitz 2024"]
[Site "Rio de Janeiro"]
[Date "2024.04.27"]
[Round "8.2"]
[White "De Siqueira, Luigy Lira"]
[Black "Oliveira, Fernando Ventura"]
[Result "0-1"]
[ECO "B79"]
[WhiteElo "2274"]
[BlackElo "2044"]
[Annotator "NA RC"]
[PlyCount "121"]
[EventDate "2024.04.12"]
[EventType "swiss"]
[EventCountry "BRA"]
[SourceTitle "playchess.com"]
[Source "ChessBase"]
[SourceQuality "1"]
[TimeControl "180+2"]

1. e4 {[%emt 0:00:02]} c5 {[%emt 0:00:00]} 2. Nf3 {[%emt 0:00:01]} Nc6 {[%emt 0:00:01]} 3. d4 {[%emt 0:00:01]} cxd4 {[%emt 0:00:01]} 4. Nxd4 {[%emt 0:00:01]} g6 {[%emt 0:00:01]} 5. Nc3 {[%emt 0:00:01]} Bg7 {[%emt 0:00:01]} 6. Be3 {[%emt 0:00:01]} Nf6 {[%emt 0:00:01]} 7. Bc4 {[%emt 0:00:01]} d6 {[%emt 0:00:03]} 8. f3 {[%emt 0:00:03]} O-O {[%emt 0:00:02]} 9. Qd2 {[%emt 0:00:01]} Ne5 {[%emt 0:00:01]} 10. Bb3 {[%emt 0:00:01]} Bd7 {[%emt 0:00:01]} 11. O-O-O {[%emt 0:00:03]} Qa5 {[%emt 0:00:01]} 12. Kb1 {[%emt 0:00:01]} Rfc8 {[%emt 0:00:01]} 13. h4 {[%emt 0:00:13]} Nc4 {[%emt 0:00:04]} 14. Bxc4 {[%emt 0:00:01]} Rxc4 {[%emt 0:00:01]} 15. Nde2 {[%emt 0:00:02]} Be6 {[%emt 0:00:06]} 16. b3 {[%emt 0:00:09]} Rc7 {[%emt 0:00:17]} 17. Bd4 {[%emt 0:00:04]} Rac8 {[%emt 0:00:05]} 18. Nd5 {[%emt 0:00:33]} Qxd2 {[%emt 0:00:06]} 19. Rxd2 {[%emt 0:00:01]} Nxd5 {[%emt 0:00:08]} 20. exd5 {[%emt 0:00:02]} Bf5 {[%emt 0:00:06]} 21. Bxg7 {[%emt 0:00:14]} Kxg7 {[%emt 0:00:45]} 22. Nd4 {[%emt 0:00:02]} h5 {[%emt 0:00:26]} 23. Nxf5+ {[%emt 0:00:46]} gxf5 {[%emt 0:00:02]} 24. Rh3 {[%emt 0:00:01]} Kf6 {[%emt 0:00:12]} 25. Rg3 {[%emt 0:00:02]} Rh8 {[%emt 0:00:03]} 26. Kb2 {[%emt 0:00:09]} Rcc8 {[%emt 0:00:05]} 27. Rg5 {[%emt 0:00:10]} Rcg8 {[%emt 0:00:07]} 28. f4 {[%emt 0:00:01]} Rxg5 {[%emt 0:00:14]} 29. fxg5+ {[%emt 0:00:29]} Kg6 {[%emt 0:00:02]} 30. Re2 {[%emt 0:00:01]} Re8 {[%emt 0:00:01]} 31. Kc3 {[%emt 0:00:03]} e5 {[%emt 0:00:03]} 32. dxe6 {[%emt 0:00:05]} fxe6 {[%emt 0:00:02]} 33. Kd4 {[%emt 0:00:03]} Kf7 {[%emt 0:00:17]} 34. c4 {[%emt 0:00:05]} Rc8 {[%emt 0:00:04]} 35. b4 {[%emt 0:00:06]} b6 {[%emt 0:00:16]} 36. a4 {[%emt 0:00:02]} Ke7 {[%emt 0:00:10]} 37. Ra2 {[%emt 0:00:07]} Kd7 {[%emt 0:00:04]} 38. a5 {[%emt 0:00:00]} Kc6 {[%emt 0:00:04]} 39. axb6 {[%emt 0:00:05]} e5+ {[%emt 0:00:01]} 40. Kd3 {[%emt 0:00:08]} axb6 {[%emt 0:00:02]} 41. Ra7 {[%emt 0:00:02]} e4+ {[%emt 0:00:03]} 42. Kd4 {[%emt 0:00:01]} b5 {[%emt 0:00:03]} 43. cxb5+ {[%emt 0:00:07]} Kxb5 {[%emt 0:00:02]} 44. Rb7+ {[%emt 0:00:00]} Kc6 {[%emt 0:00:02]} 45. Rf7 {[%emt 0:00:01]} Re8 {[%emt 0:00:01]} 46. Ke3 {[%emt 0:00:06]} Re5 {[%emt 0:00:03]} 47. g6 {[%emt 0:00:02]} f4+ {[%emt 0:00:02]} 48. Kxf4 {[%emt 0:00:08]} e3 {[%emt 0:00:01]} 49. g7 {[%emt 0:00:01]} e2 {[%emt 0:00:01]} 50. g8=Q {[%emt 0:00:13]} e1=Q {[%emt 0:00:02]} 51. Qc8+ {[%emt 0:00:00]} Kd5 {[%emt 0:00:01]} 52. Qb7+ {[%emt 0:00:00]} Ke6 {[%emt 0:00:04]} 53. Re7+ {[%emt 0:00:00]} Kf6 {[%emt 0:00:01]} 54. Rf7+ {[%emt 0:00:00]} Ke6 {[%emt 0:00:01]} 55. Qd7+ {[%emt 0:00:02]} Kd5 {[%emt 0:00:01]} 56. Qb5+ {[%emt 0:00:01]} Ke6 {[%emt 0:00:01]} 57. Qe8+ {[%emt 0:00:06]} Kd5 {[%emt 0:00:01]} 58. Qa8+ {[%emt 0:00:01]} Ke6 {[%emt 0:00:02]} 59. Re7+ {[%emt 0:00:02]} Kxe7 {[%emt 0:00:02]} 60. Qb7+ {[%emt 0:00:01]} Kf6 {[%emt 0:00:01]} 61. Qa8 {[%emt 0:00:00]} 0-1

[Event "3rd Rio Open-Blitz 2024"]
[Site "Rio de Janeiro"]
[Date "2024.04.27"]
[Round "8.3"]
[White "Ribeiro, Matheus Mendes Domin"]
[Black "Viana, Dirceu"]
[Result "1-0"]
[ECO "A21"]
[WhiteElo "2228"]
[BlackElo "2172"]
[Annotator "NA RC"]
[PlyCount "56"]
[EventDate "2024.04.12"]
[EventType "swiss"]
[EventCountry "BRA"]
[SourceTitle "playchess.com"]
[Source "ChessBase"]
[SourceQuality "1"]
[TimeControl "180+2"]

1. c4 {[%emt 0:00:02]} e5 {[%emt 0:00:00]} 2. Nc3 {[%emt 0:00:01]} Nc6 {[%emt 0:00:02]} 3. Nf3 {[%emt 0:00:01]} g6 {[%emt 0:00:01]} 4. d4 {[%emt 0:00:02]} exd4 {[%emt 0:00:01]} 5. Nxd4 {[%emt 0:00:01]} Bg7 {[%emt 0:00:01]} 6. Be3 {[%emt 0:00:01]} Nge7 {[%emt 0:00:05]} 7. g3 {[%emt 0:00:02]} O-O {[%emt 0:00:10]} 8. Bg2 {[%emt 0:00:01]} d6 {[%emt 0:00:05]} 9. O-O {[%emt 0:00:02]} Rb8 {[%emt 0:00:19]} 10. Qd2 {[%emt 0:00:09]} Ne5 {[%emt 0:00:07]} 11. b3 {[%emt 0:00:09]} Nf5 {[%emt 0:00:27]} 12. Nxf5 {[%emt 0:00:10]} Bxf5 {[%emt 0:00:01]} 13. Bxa7 {[%emt 0:00:08]} Ra8 {[%emt 0:00:12]} 14. Bd4 {[%emt 0:00:02]} c5 {[%emt 0:00:17]} 15. Be3 {[%emt 0:00:32]} Nc6 {[%emt 0:01:44]} 16. Rad1 {[%emt 0:00:22]} Re8 {[%emt 0:00:00]} 17. Nb5 {[%emt 0:00:06]} Nd4 {[%emt 0:00:00]} 18. Nxd4 {[%emt 0:00:04]} cxd4 {[%emt 0:00:00]} 19. Bxd4 {[%emt 0:00:01]} Bxd4 {[%emt 0:00:00]} 20. Qxd4 {[%emt 0:00:02]} Rxe2 {[%emt 0:00:00]} 21. a4 {[%emt 0:00:04]} Bc2 {[%emt 0:00:00]} 22. Qxd6 {[%emt 0:00:20]} Bxd1 {[%emt 0:00:00]} 23. Qxd1 {[%emt 0:00:37]} Rd2 {[%emt 0:00:00]} 24. Qf3 {[%emt 0:00:04]} Rb8 {[%emt 0:00:00]} 25. h4 {[%emt 0:00:06]} h5 {[%emt 0:00:00]} 26. Qf4 {[%emt 0:00:03]} b6 {[%emt 0:00:00]} 27. Bd5 {[%emt 0:00:01]} Rxd5 {[%emt 0:00:20]} 28. cxd5 {[%emt 0:00:01]} Rc8 {[%emt 0:00:06]} 1-0

[Event "3rd Rio Open-Blitz 2024"]
[Site "Rio de Janeiro"]
[Date "2024.04.27"]
[Round "8.4"]
[White "Becker, Rogerio Sperb"]
[Black "Teixeira, Maria Luiza Prado"]
[Result "1-0"]
[ECO "A20"]
[WhiteElo "2054"]
[BlackElo "1928"]
[Annotator "NA RC"]
[PlyCount "87"]
[EventDate "2024.04.12"]
[EventType "swiss"]
[EventCountry "BRA"]
[SourceTitle "playchess.com"]
[Source "ChessBase"]
[SourceQuality "1"]
[TimeControl "180+2"]

1. c4 {[%emt 0:00:01]} Nf6 {[%emt 0:00:04]} 2. Nf3 {[%emt 0:00:02]} d5 {[%emt 0:00:01]} 3. cxd5 {[%emt 0:00:02]} Nxd5 {[%emt 0:00:02]} 4. g3 {[%emt 0:00:01]} Nc6 {[%emt 0:00:06]} 5. Bg2 {[%emt 0:00:01]} e5 {[%emt 0:00:02]} 6. O-O {[%emt 0:00:02]} Be7 {[%emt 0:00:04]} 7. d4 {[%emt 0:00:01]} exd4 {[%emt 0:00:09]} 8. Nxd4 {[%emt 0:00:02]} Nxd4 {[%emt 0:00:13]} 9. Qxd4 {[%emt 0:00:01]} Nf6 {[%emt 0:00:11]} 10. Qxd8+ {[%emt 0:00:25]} Bxd8 {[%emt 0:00:01]} 11. Nc3 {[%emt 0:00:01]} c6 {[%emt 0:00:01]} 12. e4 {[%emt 0:00:08]} Bc7 {[%emt 0:00:07]} 13. h3 {[%emt 0:00:19]} Be6 {[%emt 0:00:04]} 14. f4 {[%emt 0:00:05]} O-O-O {[%emt 0:00:11]} 15. Be3 {[%emt 0:00:02]} Rd3 {[%emt 0:00:18]} 16. Kf2 {[%emt 0:00:24]} Rhd8 {[%emt 0:00:07]} 17. Rfe1 {[%emt 0:00:04]} Ba5 {[%emt 0:00:16]} 18. Rac1 {[%emt 0:00:09]} h5 {[%emt 0:00:06]} 19. Re2 {[%emt 0:00:23]} h4 {[%emt 0:00:31]} 20. g4 {[%emt 0:00:11]} Ne8 {[%emt 0:00:17]} 21. f5 {[%emt 0:00:08]} Bc4 {[%emt 0:00:07]} 22. Rec2 {[%emt 0:00:12]} f6 {[%emt 0:00:23]} 23. Bf1 {[%emt 0:00:06]} Rxe3 {[%emt 0:00:17]} 24. Kxe3 {[%emt 0:00:02]} Bb6+ {[%emt 0:00:01]} 25. Kf3 {[%emt 0:00:09]} Bxf1 26. Rxf1 {[%emt 0:00:01]} Rd3+ {[%emt 0:00:02]} 27. Kg2 {[%emt 0:00:12]} Rg3+ {[%emt 0:00:01]} 28. Kh1 {[%emt 0:00:03]} Bc7 {[%emt 0:00:07]} 29. Rd2 {[%emt 0:00:22]} Rxh3+ {[%emt 0:00:02]} 30. Kg2 {[%emt 0:00:01]} Rg3+ {[%emt 0:00:02]} 31. Kf2 {[%emt 0:00:01]} Bb6+ {[%emt 0:00:01]} 32. Ke2 {[%emt 0:00:04]} Re3+ {[%emt 0:00:04]} 33. Kd1 {[%emt 0:00:01]} Kc7 {[%emt 0:00:01]} 34. Re2 {[%emt 0:00:03]} Rd3+ {[%emt 0:00:03]} 35. Kc2 {[%emt 0:00:01]} Rg3 {[%emt 0:00:02]} 36. e5 {[%emt 0:00:03]} fxe5 {[%emt 0:00:03]} 37. Rxe5 {[%emt 0:00:01]} Rxg4 {[%emt 0:00:02]} 38. Rxe8 {[%emt 0:00:01]} h3 {[%emt 0:00:03]} 39. Rh8 {[%emt 0:00:03]} Rg2+ {[%emt 0:00:03]} 40. Kb3 {[%emt 0:00:01]} h2 {[%emt 0:00:02]} 41. f6 {[%emt 0:00:03]} gxf6 {[%emt 0:00:03]} 42. Rxf6 {[%emt 0:00:01]} Bd4 {[%emt 0:00:02]} 43. Rh7+ {[%emt 0:00:02]} Kb6 {[%emt 0:00:06]} 44. Rff7 {[%emt 0:00:25]} 1-0

[Event "3rd Rio Open-Blitz 2024"]
[Site "Rio de Janeiro"]
[Date "2024.04.27"]
[Round "8.5"]
[White "Lage, Pedro Ferreira"]
[Black "Leus, Lucas Resende"]
[Result "1-0"]
[ECO "A35"]
[WhiteElo "2061"]
[BlackElo "1880"]
[Annotator "NA RC"]
[PlyCount "105"]
[EventDate "2024.04.12"]
[EventType "swiss"]
[EventCountry "BRA"]
[SourceTitle "playchess.com"]
[Source "ChessBase"]
[SourceQuality "1"]
[TimeControl "180+2"]

1. Nf3 {[%emt 0:00:02]} c5 {[%emt 0:00:00]} 2. c4 {[%emt 0:00:02]} Nc6 {[%emt 0:00:01]} 3. d4 {[%emt 0:00:04]} cxd4 {[%emt 0:00:01]} 4. Nxd4 {[%emt 0:00:01]} g6 {[%emt 0:00:01]} 5. Nc3 {[%emt 0:00:04]} Bg7 {[%emt 0:00:01]} 6. e3 {[%emt 0:00:01]} Nf6 {[%emt 0:00:02]} 7. Be2 {[%emt 0:00:02]} O-O {[%emt 0:00:02]} 8. O-O {[%emt 0:00:03]} a6 {[%emt 0:00:01]} 9. c5 {[%emt 0:00:13]} d6 {[%emt 0:00:17]} 10. Nxc6 {[%emt 0:00:23]} bxc6 {[%emt 0:00:03]} 11. cxd6 {[%emt 0:00:02]} exd6 {[%emt 0:00:01]} 12. Qa4 {[%emt 0:00:18]} Qb6 {[%emt 0:00:15]} 13. Rd1 {[%emt 0:00:21]} d5 {[%emt 0:00:04]} 14. Qa3 {[%emt 0:00:12]} Bf5 {[%emt 0:00:14]} 15. Na4 {[%emt 0:00:03]} Qc7 {[%emt 0:00:14]} 16. Nc5 {[%emt 0:00:07]} a5 {[%emt 0:00:01]} 17. Bd2 {[%emt 0:00:07]} Nd7 {[%emt 0:00:21]} 18. Rac1 {[%emt 0:00:25]} Rfb8 {[%emt 0:00:12]} 19. Nxd7 {[%emt 0:00:21]} Bxd7 {[%emt 0:00:02]} 20. Bc3 {[%emt 0:00:02]} Bxc3 {[%emt 0:00:16]} 21. Rxc3 {[%emt 0:00:03]} Qe5 {[%emt 0:00:09]} 22. Bf3 {[%emt 0:00:10]} Rb5 {[%emt 0:00:19]} 23. Rdc1 {[%emt 0:00:02]} Rab8 {[%emt 0:00:03]} 24. b3 {[%emt 0:00:02]} Qe6 {[%emt 0:00:20]} 25. Be2 {[%emt 0:00:02]} R5b7 {[%emt 0:00:11]} 26. Qxa5 {[%emt 0:00:06]} Rc8 {[%emt 0:00:05]} 27. Qc5 {[%emt 0:00:10]} Ra8 {[%emt 0:00:05]} 28. R1c2 {[%emt 0:00:11]} Rba7 {[%emt 0:00:06]} 29. a4 {[%emt 0:00:02]} Ra5 {[%emt 0:00:01]} 30. Qd4 {[%emt 0:00:03]} Qd6 {[%emt 0:00:04]} 31. Rc5 {[%emt 0:00:04]} R5a7 {[%emt 0:00:05]} 32. h3 {[%emt 0:00:02]} Rb8 {[%emt 0:00:01]} 33. R2c3 {[%emt 0:00:08]} Rab7 {[%emt 0:00:03]} 34. Bd1 {[%emt 0:00:01]} Rb4 {[%emt 0:00:01]} 35. Qd2 {[%emt 0:00:04]} Ra8 {[%emt 0:00:02]} 36. Rc1 {[%emt 0:00:05]} Qe5 {[%emt 0:00:03]} 37. Qxb4 {[%emt 0:00:02]} Rb8 {[%emt 0:00:07]} 38. Qd4 {[%emt 0:00:01]} Qe6 {[%emt 0:00:01]} 39. b4 {[%emt 0:00:02]} Qd6 {[%emt 0:00:03]} 40. a5 {[%emt 0:00:02]} Qe7 {[%emt 0:00:03]} 41. a6 {[%emt 0:00:09]} Ra8 42. Be2 {[%emt 0:00:00]} Qd8 {[%emt 0:00:04]} 43. Ra5 {[%emt 0:00:00]} Qb8 {[%emt 0:00:03]} 44. Qc5 {[%emt 0:00:00]} Ra7 {[%emt 0:00:02]} 45. Bf3 {[%emt 0:00:04]} Qc7 {[%emt 0:00:06]} 46. Rca1 {[%emt 0:00:01]} Qb8 {[%emt 0:00:01]} 47. Be2 {[%emt 0:00:01]} Kg7 {[%emt 0:00:05]} 48. Qd4+ {[%emt 0:00:02]} Kg8 {[%emt 0:00:01]} 49. Qc5 {[%emt 0:00:02]} Kg7 {[%emt 0:00:01]} 50. Bd3 {[%emt 0:00:01]} Kg8 {[%emt 0:00:02]} 51. b5 {[%emt 0:00:01]} cxb5 {[%emt 0:00:04]} 52. Bxb5 {[%emt 0:00:02]} Rc7 {[%emt 0:00:07]} 53. a7 {[%emt 0:00:10]} 1-0

[Event "3rd Rio Open-Blitz 2024"]
[Site "Rio de Janeiro"]
[Date "2024.04.27"]
[Round "8.6"]
[White "Guimaraes, Wagner Peixoto"]
[Black "Azevedo, Edmundo Roberto Ramo"]
[Result "0-1"]
[ECO "D12"]
[WhiteElo "2140"]
[BlackElo "1917"]
[Annotator "NA RC"]
[PlyCount "104"]
[EventDate "2024.04.12"]
[EventType "swiss"]
[EventCountry "BRA"]
[SourceTitle "playchess.com"]
[Source "ChessBase"]
[SourceQuality "1"]
[TimeControl "180+2"]

1. d4 {[%emt 0:00:02]} d5 {[%emt 0:00:00]} 2. c4 {[%emt 0:00:01]} c6 {[%emt 0:00:01]} 3. Nf3 {[%emt 0:00:02]} Nf6 {[%emt 0:00:02]} 4. Nc3 {[%emt 0:00:02]} Bf5 {[%emt 0:00:02]} 5. e3 {[%emt 0:00:15]} e6 {[%emt 0:00:01]} 6. Bd3 {[%emt 0:00:01]} Bg4 {[%emt 0:00:01]} 7. Qb3 {[%emt 0:00:19]} Qb6 {[%emt 0:00:02]} 8. Ne5 {[%emt 0:00:10]} Nbd7 {[%emt 0:00:05]} 9. Nxg4 {[%emt 0:00:09]} Nxg4 {[%emt 0:00:01]} 10. c5 {[%emt 0:00:07]} Qxb3 {[%emt 0:00:04]} 11. axb3 {[%emt 0:00:01]} a6 {[%emt 0:00:01]} 12. b4 {[%emt 0:00:05]} Rc8 {[%emt 0:00:01]} 13. e4 {[%emt 0:00:15]} dxe4 {[%emt 0:00:04]} 14. Nxe4 {[%emt 0:00:03]} Ngf6 {[%emt 0:00:02]} 15. Nc3 {[%emt 0:00:11]} Be7 {[%emt 0:00:10]} 16. O-O {[%emt 0:00:04]} O-O {[%emt 0:00:02]} 17. Re1 {[%emt 0:00:02]} Bd8 {[%emt 0:00:07]} 18. Bf4 {[%emt 0:00:15]} Bc7 {[%emt 0:00:02]} 19. Bxc7 {[%emt 0:00:07]} Rxc7 {[%emt 0:00:01]} 20. Rad1 {[%emt 0:00:13]} Rd8 {[%emt 0:00:02]} 21. Bc4 {[%emt 0:00:03]} Nf8 {[%emt 0:00:04]} 22. Na4 {[%emt 0:00:24]} Rcd7 {[%emt 0:00:12]} 23. Nb6 {[%emt 0:00:34]} Rxd4 {[%emt 0:00:03]} 24. Rxd4 {[%emt 0:00:02]} Rxd4 {[%emt 0:00:01]} 25. b3 {[%emt 0:00:25]} N8d7 {[%emt 0:00:05]} 26. Na4 {[%emt 0:00:02]} g6 {[%emt 0:00:08]} 27. h3 {[%emt 0:00:00]} h5 {[%emt 0:00:01]} 28. g3 {[%emt 0:00:00]} Kg7 {[%emt 0:00:07]} 29. Kg2 {[%emt 0:00:06]} Rd2 {[%emt 0:02:28]} 30. Nc3 {[%emt 0:00:02]} Nd5 {[%emt 0:00:02]} 31. Bxd5 {[%emt 0:00:00]} cxd5 {[%emt 0:00:02]} 32. Ra1 {[%emt 0:00:04]} Rd3 {[%emt 0:00:00]} 33. Rc1 {[%emt 0:00:00]} Ne5 {[%emt 0:00:00]} 34. b5 {[%emt 0:00:00]} Rd2 {[%emt 0:00:00]} 35. bxa6 {[%emt 0:00:01]} bxa6 {[%emt 0:00:00]} 36. Na4 {[%emt 0:00:07]} Nc6 {[%emt 0:00:00]} 37. Kf1 {[%emt 0:00:02]} a5 {[%emt 0:00:00]} 38. Nb6 {[%emt 0:00:00]} Rb2 {[%emt 0:00:00]} 39. Rc3 {[%emt 0:00:00]} Kf6 {[%emt 0:00:00]} 40. Na4 {[%emt 0:00:00]} Rb1+ {[%emt 0:00:00]} 41. Kg2 {[%emt 0:00:00]} Ke5 {[%emt 0:00:00]} 42. Nb6 {[%emt 0:00:10]} Kd4 {[%emt 0:00:22]} 43. Re3 {[%emt 0:00:00]} Rc1 {[%emt 0:00:00]} 44. Na4 {[%emt 0:00:00]} Ra1 {[%emt 0:00:00]} 45. Rf3 {[%emt 0:00:00]} f5 {[%emt 0:00:00]} 46. Re3 {[%emt 0:00:00]} e5 {[%emt 0:00:00]} 47. Re2 {[%emt 0:00:02]} e4 {[%emt 0:00:00]} 48. Rd2+ {[%emt 0:00:02]} Ke5 {[%emt 0:00:00]} 49. Rc2 {[%emt 0:00:06]} d4 {[%emt 0:00:00]} 50. Nb6 {[%emt 0:00:06]} d3 {[%emt 0:00:00]} 51. Rd2 {[%emt 0:00:00]} Nd4 {[%emt 0:00:00]} 52. Nc4+ {[%emt 0:00:01]} Ke6 {[%emt 0:00:00]} 0-1